fUSD/lending_fUSD_20240317
["ID","MTS","AMOUNT","RATE_DAILY","PERIOD"]
[319337899,1710672638735,-1058.06959152,0.00017938,2]
[319337900,1710672638745,-1060.00055851,0.00017938,2]
[319337901,1710672638755,-269.88806193,0.00017938,2]
[319337902,1710672638765,-500.0,0.00017939,2]
[319337903,1710672638774,-500.0,0.00017939,2]
[319337904,1710672638783,-500.0,0.00017939,2]
[319337905,1710672638793,-500.0,0.00017939,2]
[319337906,1710672638802,-500.0,0.00017939,2]
[319337907,1710672638811,-500.0,0.00017939,2]
[319337908,1710672638820,-500.0,0.00017939,2]
[319337909,1710672638829,-500.0,0.00017939,2]
[319337910,1710672638838,-500.0,0.00017939,2]
[319337911,1710672638847,-150.0,0.00017939,2]
[319337912,1710672638856,-276.08,0.00017939,2]
[319337913,1710672638865,-500.0,0.00017939,2]
[319337914,1710672638875,-500.0,0.00017939,2]
[319337915,1710672638884,-500.0,0.00017939,2]
[319337916,1710672638893,-500.0,0.00017939,2]
[319337917,1710672638902,-500.0,0.00017939,2]
[319337918,1710672638911,-500.0,0.00017939,2]
[319337919,1710672638920,-500.0,0.00017939,2]
[319337920,1710672638929,-500.0,0.00017939,2]
[319337921,1710672638938,-500.0,0.00017939,2]
[319337922,1710672638947,-500.0,0.00017939,2]
[319337923,1710672638956,-500.0,0.00017939,2]
[319337924,1710672638965,-313.99158688,0.00017939,2]
[319337925,1710672638974,-500.0,0.00017939,2]
[319337926,1710672638982,-500.0,0.00017939,2]
[319337927,1710672638991,-500.0,0.00017939,2]
[319337928,1710672639001,-312.9,0.00017939,2]
[319337929,1710672639010,-500.0,0.00017939,2]
[319337930,1710672639019,-500.0,0.00017939,2]
[319337931,1710672639028,-500.0,0.00017939,2]
[319337932,1710672639038,-500.0,0.00017939,2]
[319337933,1710672639047,-500.0,0.00017939,2]
[319337934,1710672639057,-500.0,0.00017939,2]
[319337935,1710672639068,-500.0,0.00017939,2]
[319337936,1710672639078,-500.0,0.00017939,2]
[319337937,1710672639087,-500.0,0.00017939,2]
[319337938,1710672639097,-500.0,0.00017939,2]
[319337939,1710672639106,-500.0,0.00017939,2]
[319337940,1710672639115,-500.0,0.00017939,2]
[319337941,1710672639124,-500.0,0.00017939,2]
[319337942,1710672639133,-500.0,0.00017939,2]
[319337943,1710672639142,-500.0,0.00017939,2]
[319337944,1710672639151,-500.0,0.00017939,2]
[319337945,1710672639160,-541.66,0.00017939,2]
[319337946,1710672639169,-541.66,0.00017939,2]
[319337947,1710672639178,-541.66,0.00017939,2]
[319337948,1710672639187,-541.66,0.00017939,2]
[319337949,1710672639196,-500.0,0.00017939,2]
[319337950,1710672639205,-500.0,0.00017939,2]
[319337951,1710672639214,-500.0,0.00017939,2]
[319337952,1710672639226,-500.0,0.00017939,2]
[319337953,1710672639235,-500.0,0.00017939,2]
[319337954,1710672639245,-500.0,0.00017939,2]
[319337955,1710672639254,-500.0,0.00017939,2]
[319337956,1710672639265,-500.0,0.00017939,2]
[319337957,1710672639275,-500.0,0.00017939,2]
[319337958,1710672639283,-500.0,0.00017939,2]
[319337959,1710672639293,-500.0,0.00017939,2]
[319337960,1710672639302,-500.0,0.00017939,2]
[319337961,1710672639312,-504.44235068,0.00017939,2]
[319337962,1710672639322,-500.0,0.00017939,2]
[319337963,1710672639331,-500.0,0.00017939,2]
[319337964,1710672639341,-500.0,0.00017939,2]
[319337965,1710672639351,-500.0,0.00017939,2]
[319337966,1710672639360,-500.0,0.00017939,2]
[319337967,1710672639369,-500.0,0.00017939,2]
[319337968,1710672639378,-500.0,0.00017939,2]
[319337969,1710672639388,-500.0,0.00017939,2]
[319337970,1710672639398,-500.0,0.00017939,2]
[319337971,1710672639407,-500.0,0.00017939,2]
[319337972,1710672639417,-500.0,0.00017939,2]
[319337973,1710672639427,-500.0,0.00017939,2]
[319337974,1710672639439,-500.0,0.00017939,2]
[319337975,1710672639448,-500.0,0.00017939,2]
[319337976,1710672639457,-500.0,0.00017939,2]
[319337977,1710672639470,-500.0,0.00017939,2]
[319337978,1710672639479,-500.0,0.00017939,2]
[319337979,1710672639488,-500.0,0.00017939,2]
[319337980,1710672639497,-157.83863083,0.00017939,2]
[319337981,1710672639506,-500.0,0.00017939,2]
[319337982,1710672639516,-500.0,0.00017939,2]
[319337983,1710672639525,-500.0,0.00017939,2]
[319337984,1710672639534,-500.0,0.00017939,2]
[319337985,1710672639543,-276.58,0.00017939,2]
[319337986,1710672639554,-500.0,0.00017939,2]
[319337987,1710672639563,-600.2,0.00017939,2]
[319337988,1710672639573,-500.0,0.00017939,2]
[319337989,1710672639582,-508.3550231,0.00017939,2]
[319337990,1710672639591,-500.0,0.00017939,2]
[319337991,1710672639600,-628.76,0.00017939,2]
[319337992,1710672639610,-500.0,0.00017939,2]
[319337993,1710672639619,-500.0,0.00017939,2]
[319337994,1710672639629,-500.0,0.00017939,2]
[319337995,1710672639638,-500.0,0.00017939,2]
[319337996,1710672639647,-500.0,0.00017939,2]
[319337997,1710672639657,-500.0,0.00017939,2]
[319337998,1710672639666,-500.0,0.00017939,2]
[319337999,1710672639676,-500.0,0.00017939,2]
[319338000,1710672639686,-500.0,0.00017939,2]
[319338001,1710672639695,-500.0,0.00017939,2]
[319338002,1710672639705,-500.0,0.00017939,2]
[319338003,1710672639715,-500.0,0.00017939,2]
[319338004,1710672639725,-267.54607243,0.00017939,2]
[319338005,1710672639734,-500.0,0.00017939,2]
[319338006,1710672639745,-500.0,0.00017939,2]
[319338007,1710672639754,-500.0,0.00017939,2]
[319338008,1710672639764,-500.0,0.00017939,2]
[319338009,1710672639774,-500.0,0.00017939,2]
[319338010,1710672639784,-500.0,0.00017939,2]
[319338011,1710672639793,-418.07087895,0.00017939,2]
[319338012,1710672639803,-500.0,0.00017939,2]
[319338013,1710672639813,-500.0,0.00017939,2]
[319338014,1710672639823,-500.0,0.00017939,2]
[319338016,1710672639833,-500.0,0.00017939,2]
[319338018,1710672639843,-500.0,0.00017939,2]
[319338020,1710672639852,-500.0,0.00017939,2]
[319338022,1710672639862,-599.36969688,0.00017939,2]
[319338023,1710672639871,-500.0,0.00017939,2]
[319338024,1710672639881,-500.0,0.00017939,2]
[319338025,1710672639891,-500.0,0.00017939,2]
[319338026,1710672639900,-500.0,0.00017939,2]
[319338027,1710672639910,-500.0,0.00017939,2]
[319338028,1710672639920,-500.0,0.00017939,2]
[319338029,1710672639929,-500.0,0.00017939,2]
[319338030,1710672639938,-500.0,0.00017939,2]
[319338031,1710672639948,-500.0,0.00017939,2]
[319338032,1710672639958,-500.0,0.00017939,2]
[319338034,1710672639967,-500.0,0.00017939,2]
[319338035,1710672639976,-500.0,0.00017939,2]
[319338036,1710672639986,-500.0,0.00017939,2]
[319338037,1710672639996,-500.0,0.00017939,2]
[319338038,1710672640005,-500.0,0.00017939,2]
[319338039,1710672640016,-500.0,0.00017939,2]
[319338040,1710672640025,-500.0,0.00017939,2]
[319338041,1710672640035,-306.86030377,0.00017939,2]
[319338043,1710672640044,-500.0,0.00017941,2]
[319338045,1710672640053,-500.0,0.00017941,2]
[319338046,1710672640067,-500.0,0.00017941,2]
[319338048,1710672640078,-500.0,0.00017941,2]
[319338050,1710672640088,-500.0,0.00017941,2]
[319338051,1710672640099,-500.0,0.00017941,2]
[319338052,1710672640110,-500.0,0.00017941,2]
[319338053,1710672640120,-500.0,0.00017941,2]
[319338054,1710672640129,-500.0,0.00017941,2]
[319338056,1710672640140,-500.0,0.00017941,2]
[319338057,1710672640149,-500.0,0.00017941,2]
[319338058,1710672640159,-500.0,0.00017941,2]
[319338059,1710672640168,-500.0,0.00017941,2]
[319338060,1710672640177,-418.28,0.00017941,2]
[319338061,1710672640187,-500.0,0.00017941,2]
[319338062,1710672640196,-500.0,0.00017941,2]
[319338063,1710672640206,-500.0,0.00017941,2]
[319338064,1710672640216,-500.0,0.00017941,2]
[319338065,1710672640229,-154.33844679,0.00017941,2]
[319338066,1710672640240,-541.66,0.00017941,2]
[319338067,1710672640251,-541.66,0.00017941,2]
[319338068,1710672640262,-541.66,0.00017941,2]
[319338069,1710672640271,-541.66,0.00017941,2]
[319338070,1710672640280,-500.0,0.00017941,2]
[319338071,1710672640289,-500.0,0.00017941,2]
[319338072,1710672640299,-411.49634828,0.00017941,2]
[319338073,1710672640311,-500.0,0.00017941,2]
[319338074,1710672640320,-500.0,0.00017941,2]
[319338075,1710672640329,-500.0,0.00017941,2]
[319338076,1710672640339,-500.0,0.00017941,2]
[319338077,1710672640349,-500.0,0.00017941,2]
[319338078,1710672640359,-500.0,0.00017941,2]
[319338079,1710672640368,-500.0,0.00017941,2]
[319338080,1710672640378,-500.0,0.00017941,2]
[319338081,1710672640387,-500.0,0.00017941,2]
[319338082,1710672640396,-500.0,0.00017941,2]
[319338083,1710672640405,-500.0,0.00017941,2]
[319338084,1710672640415,-500.0,0.00017941,2]
[319338085,1710672640425,-500.0,0.00017941,2]
[319338086,1710672640434,-500.0,0.00017941,2]
[319338087,1710672640443,-500.0,0.00017941,2]
[319338088,1710672640453,-500.0,0.00017941,2]
[319338089,1710672640462,-586.4234425,0.00017941,2]
[319338090,1710672640471,-500.0,0.00017941,2]
[319338091,1710672640481,-500.0,0.00017941,2]
[319338092,1710672640491,-500.0,0.00017941,2]
[319338093,1710672640500,-500.0,0.00017941,2]
[319338094,1710672640509,-252.22,0.00017941,2]
[319338095,1710672640519,-500.0,0.00017941,2]
[319338096,1710672640529,-500.0,0.00017941,2]
[319338097,1710672640540,-500.0,0.00017941,2]
[319338098,1710672640550,-358.93,0.00017941,2]
[319338099,1710672640560,-500.0,0.00017941,2]
[319338100,1710672640571,-500.0,0.00017941,2]
[319338101,1710672640580,-500.0,0.00017941,2]
[319338102,1710672640590,-500.0,0.00017941,2]
[319338103,1710672640599,-500.0,0.00017941,2]
[319338104,1710672640609,-500.0,0.00017941,2]
[319338105,1710672640619,-500.0,0.00017941,2]
[319338106,1710672640628,-500.0,0.00017941,2]
[319338107,1710672640637,-500.0,0.00017941,2]
[319338108,1710672640648,-770.11,0.00017941,2]
[319338109,1710672640658,-770.11,0.00017941,2]
[319338110,1710672640667,-770.11,0.00017941,2]
[319338111,1710672640677,-770.11,0.00017941,2]
[319338112,1710672640872,-500.0,0.00017941,2]
[319338113,1710672640883,-500.0,0.00017941,2]
[319338114,1710672640893,-500.0,0.00017941,2]
[319338115,1710672640902,-455.57,0.00017941,2]
[319338116,1710672640911,-603.76580582,0.00017941,2]
[319338117,1710672640921,-5344.98,0.00017941,2]
[319338118,1710672640930,-5344.98,0.00017941,2]
[319338119,1710672640939,-5344.98,0.00017941,2]
[319338120,1710672640949,-5344.98,0.00017941,2]
[319338121,1710672640958,-619.67717697,0.00017941,2]
[319338122,1710672640967,-500.0,0.00017941,2]
[319338123,1710672640976,-500.0,0.00017941,2]
[319338124,1710672640985,-500.0,0.00017941,2]
[319338125,1710672640994,-500.0,0.00017941,2]
[319338126,1710672641003,-500.0,0.00017941,2]
[319338127,1710672641013,-639.59,0.00017941,2]
[319338128,1710672641022,-500.0,0.00017941,2]
[319338129,1710672641033,-500.0,0.00017941,2]
[319338130,1710672641041,-500.0,0.00017941,2]
[319338131,1710672641051,-500.0,0.00017941,2]
[319338132,1710672641060,-635.63,0.00017941,2]
[319338133,1710672641070,-500.0,0.00017941,2]
[319338134,1710672641079,-575.40817455,0.00017947,2]
[319338135,1710672641089,-161.9477509,0.00017973,2]
[319338136,1710672641098,-575.40817455,0.00017996,2]
[319338137,1710672641107,-155.0,0.00018,2]
[319338138,1710672641117,-155.0,0.00018,2]
[319338139,1710672641126,-1500.0,0.00018,2]
[319338140,1710672641137,-766.75913953,0.00018012,2]
[319338141,1710672641147,-766.75913953,0.0001803,2]
[319338142,1710672641158,-356.26,0.00018036,2]
[319338143,1710672641168,-160.45,0.0001805,2]
[319338144,1710672641177,-816.58,0.00018055,2]
[319338145,1710672641186,-1236.67,0.00018055,2]
[319338146,1710672641196,-150.21260499,0.00018061,2]
[319338147,1710672641206,-151.45421478,0.00018065,2]
[319338148,1710672641215,-151.45421478,0.00018066,2]
[319338149,1710672641226,-167.91376901,0.00018105,2]
[319338150,1710672641235,-154.5275948,0.00018108,2]
[319338151,1710672641247,-152.64766203,0.00018153,2]
[319338152,1710672641257,-575.40817455,0.00018155,2]
[319338153,1710672641266,-303.61,0.00018192,2]
[319338154,1710672641276,-359.55,0.00018192,2]
[319338155,1710672641286,-150.0,0.00018192,2]
[319338156,1710672641296,-340.9,0.00018192,2]
[319338157,1710672641306,-150.0,0.00018192,2]
[319338158,1710672641318,-150.0,0.00018192,2]
[319338159,1710672641327,-828.06,0.00018192,2]
[319338160,1710672641336,-150.0,0.00018192,2]
[319338161,1710672641345,-150.0,0.00018192,2]
[319338162,1710672641356,-150.0,0.00018192,2]
[319338163,1710672641366,-150.0,0.00018192,2]
[319338164,1710672641375,-150.0,0.00018192,2]
[319338165,1710672641384,-150.0,0.00018192,2]
[319338166,1710672641394,-150.0,0.00018192,2]
[319338167,1710672641404,-346.78,0.00018192,2]
[319338168,1710672641414,-766.75913953,0.00018193,2]
[319338169,1710672641423,-245.77091091,0.00018196,2]
[319338170,1710672641433,-500.0,0.00018204,2]
[319338171,1710672641442,-911.28,0.00018209,2]
[319338172,1710672641451,-766.75913953,0.00018226,2]
[319338173,1710672641461,-160.58,0.00018228,2]
[319338174,1710672641471,-208.51,0.00018255,2]
[319338175,1710672641481,-1000.0,0.00018277,2]
[319338176,1710672641491,-150.80584846,0.00018316,2]
[319338177,1710672641501,-167.91376901,0.0001837,2]
[319338178,1710672641510,-150.80584846,0.00018385,2]
[319338179,1710672641520,-152.0,0.00018391,4]
[319338180,1710672641530,-161.9477509,0.00018423,2]
[319338181,1710672641539,-575.40817455,0.00018424,2]
[319338182,1710672641549,-156.78245889,0.00018445,2]
[319338183,1710672641559,-312.46,0.0001845,2]
[319338184,1710672641570,-154.5275948,0.00018476,2]
[319338185,1710672641579,-160.58,0.00018483,2]
[319338186,1710672641589,-151.45421478,0.0001849,2]
[319338187,1710672641599,-1500.0,0.000185,2]
[319338188,1710672641608,-151.45421478,0.00018553,2]
[319338189,1710672641618,-167.0,0.00018591,2]
[319338190,1710672641628,-766.75913953,0.00018618,2]
[319338191,1710672641638,-766.75913953,0.00018631,2]
[319338192,1710672641647,-167.91376901,0.00018635,2]
[319338193,1710672641658,-500.0,0.00018639,2]
[319338194,1710672641667,-770.11,0.00018639,2]
[319338195,1710672641676,-5344.98,0.00018639,2]
[319338196,1710672641686,-150.0,0.00018686,2]
[319338197,1710672641696,-150.0,0.00018698,2]
[319338198,1710672641705,-766.75913953,0.000187,2]
[319338199,1710672641715,-160.58,0.00018738,2]
[319338200,1710672641724,-500.0,0.00018752,2]
[319338201,1710672641734,-151.16603037,0.00018775,2]
[319338202,1710672641743,-6172.9296,0.0001878,2]
[319338203,1710672641753,-1600.1031287,0.0001878,2]
[319338204,1710672641762,-151.45421478,0.00018788,2]
[319338205,1710672641772,-8249.71603753,0.000188,2]
[319338206,1710672641781,-500.0,0.00018809,2]
[319338207,1710672641791,-8249.71603748,0.00018809,2]
[319338208,1710672641801,-245.77091091,0.0001881,2]
[319338209,1710672641811,-3000.0,0.0001881,2]
[319338210,1710672641823,-161.9477509,0.00018816,2]
[319338211,1710672641832,-8249.71603748,0.00018818,2]
[319338212,1710672641841,-245.77091091,0.00018824,2]
[319338213,1710672641850,-8249.71603748,0.00018827,2]
[319338214,1710672641859,-8249.71603748,0.00018836,2]
[319338215,1710672641868,-1600.1031287,0.0001884,2]
[319338216,1710672641877,-500.0,0.00018845,2]
[319338217,1710672641887,-365.30571271,0.00018845,2]
[319338218,1710672641898,-500.0,0.00018845,2]
[319338219,1710672641908,-500.0,0.00018845,2]
[319338220,1710672641917,-500.0,0.00018845,2]
[319338221,1710672641927,-500.0,0.00018845,2]
[319338222,1710672641936,-500.0,0.00018845,2]
[319338223,1710672641947,-8249.71603748,0.00018845,2]
[319338224,1710672641957,-8249.71603748,0.00018855,2]
[319338225,1710672641966,-8249.71603748,0.00018864,2]
[319338226,1710672641976,-8249.71603748,0.00018873,2]
[319338227,1710672641986,-10426.49285854,0.00018878,2]
[319338228,1710672641995,-695.12785261,0.00018878,2]
[319338229,1710672642004,-500.0,0.00018878,2]
[319338230,1710672642014,-541.66,0.00018878,2]
[319338231,1710672642023,-500.0,0.00018878,2]
[319338232,1710672642032,-500.0,0.00018878,2]
[319338233,1710672642042,-11225.78406537,0.00018879,2]
[319338234,1710672642052,-500.0,0.00018879,2]
[319338235,1710672642061,-500.0,0.00018879,2]
[319338236,1710672642071,-534.59383229,0.00018879,2]
[319338237,1710672642080,-634.14,0.00018879,2]
[319338238,1710672642089,-541.66,0.00018879,2]
[319338239,1710672642099,-541.66,0.00018879,2]
[319338240,1710672642109,-541.66,0.00018879,2]
[319338241,1710672642118,-541.66,0.00018879,2]
[319338242,1710672642128,-541.66,0.00018879,2]
[319338243,1710672642138,-541.66,0.00018879,2]
[319338244,1710672642147,-500.0,0.00018879,2]
[319338245,1710672642158,-500.0,0.00018879,2]
[319338246,1710672642167,-500.0,0.00018879,2]
[319338247,1710672642176,-500.0,0.00018879,2]
[319338248,1710672642186,-306.24,0.00018879,2]
[319338249,1710672642195,-635.71447698,0.00018879,2]
[319338250,1710672642205,-500.0,0.00018879,2]
[319338251,1710672642216,-398.49230782,0.00018879,2]
[319338252,1710672642228,-500.0,0.00018879,2]
[319338253,1710672642237,-500.0,0.00018879,2]
[319338254,1710672642249,-500.0,0.00018879,2]
[319338255,1710672642259,-500.0,0.00018879,2]
[319338256,1710672642270,-500.0,0.00018879,2]
[319338257,1710672642279,-500.0,0.00018879,2]
[319338258,1710672642289,-500.0,0.00018879,2]
[319338259,1710672642298,-500.0,0.00018879,2]
[319338260,1710672642307,-500.0,0.00018879,2]
[319338261,1710672642319,-500.0,0.00018879,2]
[319338262,1710672642329,-500.0,0.00018879,2]
[319338263,1710672642338,-500.0,0.00018879,2]
[319338264,1710672642348,-500.0,0.00018879,2]
[319338265,1710672642358,-500.0,0.00018879,2]
[319338266,1710672642367,-225.72978675,0.00018879,2]
[319338267,1710672642377,-770.11,0.00018879,2]
[319338268,1710672642386,-770.11,0.00018879,2]
[319338269,1710672642396,-770.11,0.00018879,2]
[319338270,1710672642405,-770.11,0.00018879,2]
[319338271,1710672642414,-770.11,0.00018879,2]
[319338272,1710672642424,-770.11,0.00018879,2]
[319338273,1710672642433,-5344.98,0.00018879,2]
[319338274,1710672642442,-5344.98,0.00018879,2]
[319338275,1710672642451,-5344.98,0.00018879,2]
[319338276,1710672642462,-5344.98,0.00018879,2]
[319338277,1710672642472,-5344.98,0.00018879,2]
[319338278,1710672642481,-5344.98,0.00018879,2]
[319338279,1710672642491,-500.0,0.00018879,2]
[319338280,1710672642500,-500.0,0.00018879,2]
[319338281,1710672642510,-500.0,0.00018879,2]
[319338282,1710672642520,-500.0,0.00018879,2]
[319338283,1710672642529,-500.0,0.00018879,2]
[319338284,1710672642540,-500.0,0.00018879,2]
[319338285,1710672642550,-500.0,0.00018879,2]
[319338286,1710672642561,-500.0,0.00018879,2]
[319338287,1710672642572,-1502108.38770701,0.0001888,2]
[319338288,1710672642581,-11540.01146878,0.0001888,2]
[319338289,1710672642590,-770.11,0.00018881,2]
[319338290,1710672642599,-5344.98,0.00018881,2]
[319338291,1710672642608,-8249.71603748,0.00018882,2]
[319338292,1710672642618,-8249.71603748,0.00018891,2]
[319338293,1710672642627,-296.71847077,0.000189,2]
[319338294,1710672642637,-8249.71603748,0.000189,2]
[319338295,1710672642646,-9728.96451058,0.000189,2]
[319338296,1710672642656,-4752.0,0.000189,5]
[319338297,1710672642666,-167.91376901,0.000189,2]
[319338298,1710672642675,-1600.1031287,0.000189,2]
[319338299,1710672642685,-150.0,0.000189,2]
[319338300,1710672642694,-151.16603037,0.00018904,2]
[319338301,1710672642704,-237.930345,0.00018904,2]
[319338302,1710672642713,-575.40817455,0.00018955,2]
[319338303,1710672642722,-1818.3,0.0001896,2]
[319338304,1710672642731,-160.58,0.00018993,2]
[319338305,1710672642741,-500.0,0.00018996,2]
[319338306,1710672642750,-500.0,0.00018996,2]
[319338307,1710672642760,-500.0,0.00018997,2]
[319338308,1710672642769,-500.0,0.00018997,2]
[319338309,1710672642779,-500.0,0.00018997,2]
[319338310,1710672642788,-640.95631722,0.00018997,2]
[319338311,1710672642798,-155.0,0.00018997,2]
[319338312,1710672642807,-500.0,0.00018997,2]
[319338313,1710672642818,-500.0,0.00018997,2]
[319338314,1710672642826,-170.8,0.00018997,2]
[319338315,1710672642834,-500.0,0.00018997,2]
[319338316,1710672642843,-500.0,0.00018997,2]
[319338318,1710672642853,-500.0,0.00018997,2]
[319338319,1710672642863,-500.0,0.00018997,2]
[319338320,1710672642872,-500.0,0.00018997,2]
[319338321,1710672642881,-500.0,0.00018997,2]
[319338322,1710672642890,-500.0,0.00018997,2]
[319338323,1710672642899,-500.0,0.00018997,2]
[319338324,1710672642909,-500.0,0.00018997,2]
[319338326,1710672642918,-500.0,0.00018997,2]
[319338327,1710672642927,-500.0,0.00018997,2]
[319338328,1710672642937,-500.0,0.00018997,2]
[319338329,1710672642947,-500.0,0.00018997,2]
[319338330,1710672642957,-500.0,0.00018997,2]
[319338332,1710672642966,-500.0,0.00018997,2]
[319338334,1710672642976,-185.41631864,0.00018997,2]
[319338336,1710672642986,-500.0,0.00018997,2]
[319338338,1710672642995,-500.0,0.00018997,2]
[319338340,1710672643004,-500.0,0.00018997,2]
[319338343,1710672643013,-500.0,0.00018997,2]
[319338346,1710672643023,-500.0,0.00018997,2]
[319338348,1710672643032,-500.0,0.00018997,2]
[319338351,1710672643041,-509.16018906,0.00018997,2]
[319338354,1710672643049,-500.0,0.00018997,2]
[319338356,1710672643059,-500.0,0.00018997,2]
[319338359,1710672643070,-500.0,0.00018997,2]
[319338360,1710672643078,-500.0,0.00018997,2]
[319338362,1710672643087,-500.0,0.00018997,2]
[319338364,1710672643096,-500.0,0.00018997,2]
[319338365,1710672643105,-500.0,0.00018997,2]
[319338366,1710672643114,-500.0,0.00018997,2]
[319338367,1710672643123,-634.86,0.00018997,2]
[319338368,1710672643132,-500.0,0.00018997,2]
[319338369,1710672643142,-500.0,0.00018997,2]
[319338370,1710672643151,-500.0,0.00018997,2]
[319338371,1710672643160,-500.0,0.00018997,2]
[319338372,1710672643170,-628.80038167,0.00018997,2]
[319338373,1710672643179,-5978.94722321,0.00018998,2]
[319338374,1710672643188,-156.6536012,0.00018998,2]
[319338375,1710672643196,-1480.339219,0.00018998,2]
[319338376,1710672643205,-5344.31441913,0.00018998,2]
[319338377,1710672643215,-359.87435267,0.00018998,2]
[319338378,1710672643227,-326.36202036,0.00018998,2]
[319338379,1710672643236,-277.2553944,0.00018998,2]
[319338380,1710672643245,-204.65619125,0.00018998,2]
[319338381,1710672643254,-253.33043359,0.00018998,2]
[319338382,1710672643264,-164.54575719,0.00018998,2]
[319338383,1710672643273,-2977.43362081,0.00018998,2]
[319338384,1710672643282,-155.0,0.00018998,2]
[319338385,1710672643292,-19361.4999371,0.00018998,2]
[319338386,1710672643301,-291.77345501,0.00018998,2]
[319338387,1710672643312,-568.19875151,0.00018998,2]
[319338388,1710672643324,-500.0,0.00018998,2]
[319338389,1710672643333,-500.0,0.00018998,2]
[319338390,1710672643342,-500.0,0.00018998,2]
[319338391,1710672643352,-65981.9736558,0.00018998,2]
[319338392,1710672643361,-770.11,0.00018998,2]
[319338393,1710672643371,-5344.98,0.00018998,2]
[319338394,1710672643380,-7585.40772748,0.00018999,2]
[319338395,1710672643390,-364.73602773,0.00018999,5]
[319338396,1710672643399,-2049.57903397,0.00018999,2]
[319338397,1710672643409,-500.0,0.00018999,2]
[319338398,1710672643418,-500.0,0.00018999,2]
[319338399,1710672643428,-500.0,0.00018999,2]
[319338400,1710672643437,-500.0,0.00018999,2]
[319338401,1710672643447,-500.0,0.00018999,2]
[319338402,1710672643457,-500.0,0.00018999,2]
[319338403,1710672643469,-500.0,0.00018999,2]
[319338404,1710672643478,-500.0,0.00018999,2]
[319338405,1710672643487,-500.0,0.00018999,2]
[319338406,1710672643496,-500.0,0.00018999,2]
[319338407,1710672643505,-500.0,0.00018999,2]
[319338408,1710672643514,-419.89,0.00018999,2]
[319338409,1710672643523,-1000.0,0.00018999,2]
[319338410,1710672643533,-1000.0,0.00018999,3]
[319338411,1710672643542,-1000.0,0.00018999,4]
[319338412,1710672643551,-1000.0,0.00018999,5]
[319338414,1710672643561,-1000.0,0.00018999,6]
[319338416,1710672643573,-1000.0,0.00018999,7]
[319338417,1710672643582,-500.0,0.00018999,2]
[319338418,1710672643591,-579.22332927,0.00018999,2]
[319338419,1710672643600,-500.0,0.00018999,2]
[319338420,1710672643609,-500.0,0.00018999,2]
[319338421,1710672643619,-500.0,0.00018999,2]
[319338423,1710672643628,-500.0,0.00018999,2]
[319338424,1710672643638,-541.66,0.00018999,2]
[319338425,1710672643647,-541.66,0.00018999,2]
[319338426,1710672643656,-541.66,0.00018999,2]
[319338427,1710672643666,-541.66,0.00018999,2]
[319338428,1710672643675,-541.66,0.00018999,2]
[319338429,1710672643685,-541.66,0.00018999,2]
[319338430,1710672643696,-541.66,0.00018999,2]
[319338431,1710672643705,-541.66,0.00018999,2]
[319338432,1710672643714,-541.82,0.00018999,2]